bitfinex/quotes_ETHUSD_20260227
["timestamp","ask_amount","ask_price","bid_price","bid_amount"]
[1772165133262,1.21660421,2054.9,2053.9,0.5413959]
[1772165133660,1.21660421,2054.9,2053.9,1.75854439]
[1772165134874,1.78146347,2054.9,2053.9,0.5413959]
[1772165135074,1.78146347,2054.9,2053.9,1.75858696]
[1772165135294,0.56485926,2054.8,2053.7,1.21727961]
[1772165135496,0.56485926,2054.8,2053.6,1.75973669]
[1772165135671,0.56485926,2054.6,2053.6,0.5423959]
[1772165135997,2.13285926,2054.5,2053.6,0.001]
[1772165136289,2.13285926,2054.5,2053.6,1.21836406]
[1772165136500,1.568,2054.5,2053.6,1.75975996]
[1772165136792,1.568,2054.5,2053.7,0.5413959]
[1772165137568,2.78381829,2054.6,2053.7,0.5413959]
[1772165137798,2.78381829,2054.6,2053.9,0.5413959]
[1772165138896,2.78381829,2054.6,2054.1,0.001]
[1772165139065,1.567,2054.6,2054.1,0.57877099]
[1772165139501,0.57114041,2054.5,2053.6,0.001]
[1772165139669,2.94412196,2054.2,2053.6,0.001]
[1772165139877,2.94412196,2054.2,2053.4,0.001]
[1772165139878,2.13648215,2054.1,2053.4,0.001]
[1772165140373,1.566,2054.1,2053.4,0.001]
[1772165140580,2.13648215,2054.1,2053.4,0.001]
[1772165141180,0.57048215,2054.0,2053.0,0.001]
[1772165141492,2.37589447,2053.5,2052.5,0.60653928]
[1772165141697,2.37589447,2053.1,2052.2,0.60653928]
[1772165142006,2.37589447,2053.1,2052.0,1.21832018]
[1772165142179,2.37589447,2053.1,2051.9,3.20947041]
[1772165142385,2.37589447,2052.8,2051.9,0.60653928]
[1772165142698,1.565,2052.7,2051.9,1.82492219]
[1772165142901,1.565,2052.7,2052.0,0.60653928]
[1772165143498,1.349,2053.1,2052.0,0.60653928]
[1772165143871,1.21773015,2053.0,2052.2,0.60653928]
[1772165144182,2.56668941,2053.1,2052.2,0.60653928]
[1772165144904,1.349,2053.1,2052.2,0.60653928]
[1772165145103,1.3172823,2053.1,2052.4,0.60653928]
[1772165145877,2.78241157,2053.6,2052.6,0.60653928]
[1772165147710,1.565,2053.6,2052.6,0.60653928]
[1772165147892,1.565,2053.6,2052.8,0.60653928]
[1772165148201,2.77901879,2054.2,2052.9,0.60653928]
[1772165149187,2.37589447,2054.0,2052.9,0.60653928]
[1772165149596,2.77901879,2054.2,2052.9,0.60653928]
[1772165150306,2.77901879,2054.2,2053.0,1.21773015]
[1772165150483,2.77901879,2054.2,2053.1,0.60653928]
[1772165151575,2.77901879,2054.2,2052.7,0.60653928]
[1772165151576,2.37589447,2053.8,2052.7,0.60653928]
[1772165151782,1.563,2053.7,2052.7,0.60653928]
[1772165152734,1.21737436,2053.6,2052.7,1.82440297]
[1772165152912,1.21737436,2053.6,2053.1,0.001]
[1772165154408,2.37589447,2053.5,2053.1,0.001]
[1772165154606,1.21749293,2053.4,2052.6,0.001]
[1772165155104,1.21743667,2053.5,2052.6,0.60753928]
[1772165156698,4.86964504,2053.6,2052.7,1.21790812]
[1772165157010,4.86964504,2053.6,2052.7,1.8244474]
[1772165157326,4.86893559,2053.9,2052.9,0.60653928]
[1772165157626,1.21917612,2054.0,2053.1,0.60653928]
[1772165158719,1.21917612,2054.0,2053.2,1.82415081]
[1772165160270,0.002,2054.0,2053.4,0.60653928]
[1772165160414,0.002,2054.0,2053.3,2.37589447]
[1772165160415,1.561,2054.1,2053.5,0.60653928]
[1772165160799,0.002,2054.2,2053.7,0.60653928]
[1772165160988,0.002,2054.2,2053.5,1.2174212]
[1772165161183,0.002,2054.2,2053.6,0.60653928]
[1772165162031,0.002,2054.2,2053.3,0.60653928]
[1772165162328,0.57048215,2054.0,2052.7,0.60653928]
[1772165162504,0.57048215,2053.8,2052.7,0.60653928]
[1772165162830,1.21731508,2053.7,2052.7,1.82439584]
[1772165163009,1.21731508,2053.7,2052.8,0.60653928]
[1772165163325,1.78777252,2053.8,2052.8,0.60653928]
[1772165164039,0.57048215,2053.7,2052.6,1.82546948]
[1772165164206,0.57048215,2053.7,2052.7,0.60653928]
[1772165164724,1.21737436,2053.6,2052.8,1.21784879]
[1772165165148,1.21725581,2053.8,2052.9,0.60653928]
[1772165166923,1.21725581,2053.8,2052.9,1.82432413]
[1772165167120,1.21725581,2053.8,2053.0,0.60653928]
[1772165167313,1.21925581,2053.8,2053.0,0.60653928]
[1772165168137,1.21925581,2053.8,2052.8,1.21882029]
[1772165168825,1.21925581,2053.8,2052.9,0.60653928]
[1772165169010,1.21925581,2053.8,2053.0,1.82426943]
[1772165169331,1.21925581,2053.8,2052.9,1.21774481]
[1772165169536,2.94637662,2053.7,2052.8,0.001]
[1772165170534,0.58841101,2053.6,2052.8,0.001]
[1772165171036,1.21743364,2053.5,2052.8,0.001]
[1772165172128,1.553,2053.4,2052.8,0.001]
[1772165172328,1.553,2053.4,2052.8,0.623625]
[1772165173133,1.553,2053.4,2052.8,1.8414372]
[1772165175272,1.21741474,2053.6,2052.8,1.8414372]
[1772165175439,1.21741474,2053.6,2052.9,0.622625]
[1772165175637,1.21734896,2053.7,2052.9,0.622625]
[1772165176541,2.77030027,2053.8,2052.9,0.622625]
[1772165177218,2.77030027,2053.8,2053.1,0.622625]
[1772165177219,1.553,2053.8,2053.1,0.622625]
[1772165177420,0.002,2054.0,2053.6,0.622625]
[1772165177619,1.21694306,2054.4,2053.6,0.622625]
[1772165177825,6.41727144,2054.6,2053.6,0.622625]
[1772165178028,1.21690371,2054.4,2053.6,0.622625]
[1772165179043,1.21693958,2054.4,2053.6,0.622625]
[1772165179249,4.86736587,2054.5,2053.7,1.21731508]
[1772165180131,4.86736587,2054.5,2053.6,0.622625]
[1772165180336,5.45577688,2054.5,2053.4,1.21744637]
[1772165180732,0.59041101,2054.2,2053.1,2.37589447]
[1772165180947,0.59041101,2054.2,2053.2,0.622625]
[1772165181345,1.21707803,2054.1,2053.2,1.84019003]
[1772165181950,1.21707803,2054.1,2053.8,0.001]
[1772165182252,1.548,2054.0,2053.8,0.001]
[1772165182548,1.548,2054.0,2052.9,8.70203546]
[1772165182549,0.58841101,2053.9,2052.9,1.84035611]
[1772165182926,0.58841101,2053.9,2053.3,0.001]
[1772165183551,1.21725581,2053.8,2053.3,0.001]
[1772165185294,1.21723896,2053.9,2053.3,0.001]
[1772165186960,1.80564997,2053.9,2053.3,0.001]
[1772165189874,1.21723896,2053.9,2053.3,0.001]
[1772165191470,0.58841101,2053.8,2053.0,1.21773015]
[1772165191668,1.21723896,2053.9,2052.8,0.001]
[1772165191669,0.58841101,2053.5,2052.8,0.001]
[1772165191874,1.549,2053.4,2052.8,0.001]
[1772165193948,1.21755223,2053.3,2052.8,0.001]
[1772165194181,1.80596324,2053.3,2052.8,0.001]
[1772165194559,4.18185771,2053.3,2052.8,0.001]
[1772165195090,4.18185771,2053.3,2052.6,0.001]
[1772165195305,1.80596324,2053.3,2052.6,0.001]
[1772165195453,1.80596324,2053.3,2053.0,0.001]
[1772165195647,1.80596324,2053.3,2052.8,0.001]
[1772165196087,1.80596324,2053.3,2052.6,0.001]
[1772165196452,1.21755223,2053.3,2052.6,0.001]
[1772165196651,1.21755223,2053.3,2052.6,0.623625]
[1772165197284,1.21755223,2053.3,2052.6,0.001]
[1772165198296,1.80596324,2053.3,2052.6,0.001]
[1772165198500,0.58841101,2053.1,2052.6,0.001]
[1772165198813,0.58841101,2053.1,2052.5,0.001]
[1772165201124,1.21773015,2053.0,2052.5,0.001]
[1772165201304,1.551,2052.9,2052.5,0.001]
[1772165202615,1.551,2052.9,2052.0,1.84090365]
[1772165202820,1.551,2052.9,2052.1,0.59935484]
[1772165204513,1.21784879,2052.8,2052.1,0.59935484]
[1772165205430,1.21784879,2052.8,2052.1,1.81761377]
[1772165205737,1.21784879,2052.8,2052.1,0.59935484]
[1772165206140,2.76883106,2052.9,2052.2,0.59935484]
[1772165207223,1.553,2052.9,2052.4,0.59935484]
[1772165207735,0.002,2053.1,2052.4,0.59935484]
[1772165210046,0.62283342,2053.1,2052.3,1.81849961]
[1772165210239,0.002,2053.1,2052.4,0.59935484]
[1772165210948,0.62283342,2053.1,2052.4,0.59935484]
[1772165211132,0.002,2053.1,2052.4,0.59935484]
[1772165212247,0.002,2053.1,2052.5,0.59935484]
[1772165212823,0.002,2053.1,2052.3,0.001]
[1772165213024,0.62283342,2053.1,2052.3,1.81849765]
[1772165213225,0.002,2053.1,2052.4,0.59935484]
[1772165213427,0.62283342,2053.1,2052.3,0.001]
[1772165214133,1.21773015,2053.0,2052.3,0.001]
[1772165214456,1.83856357,2053.0,2052.3,0.001]
[1772165215349,1.21773015,2053.0,2052.3,0.60035484]
[1772165218460,4.8729206,2053.1,2052.3,1.81845636]
[1772165218630,4.8729206,2053.1,2052.4,0.59935484]
[1772165219358,1.21967083,2053.1,2052.4,0.59935484]
[1772165220844,0.002,2053.1,2052.6,0.59935484]
[1772165221161,1.21967671,2053.1,2052.5,0.001]
[1772165221536,0.002,2052.9,2052.5,0.001]
[1772165221735,1.55,2052.8,2052.5,0.001]
[1772165223161,1.21790812,2052.7,2052.5,0.001]
[1772165224060,1.21790812,2052.7,2052.3,0.001]
[1772165225382,1.55,2052.8,2052.3,0.60035484]
[1772165225541,1.21980424,2052.9,2052.3,0.60035484]
[1772165225747,0.002,2052.9,2052.3,0.60035484]
[1772165226666,4.87232724,2053.3,2052.9,0.59935484]
[1772165226667,0.002,2053.3,2052.9,0.59935484]
[1772165227343,0.002,2053.3,2053.0,1.21773015]
[1772165227547,0.002,2053.3,2053.1,0.59935484]
[1772165228638,0.004,2053.3,2053.1,0.59935484]
[1772165228838,0.002,2053.2,2052.8,0.59935484]
[1772165229255,0.002,2053.1,2052.4,0.59935484]
[1772165229556,0.002,2053.1,2052.4,1.81742733]
[1772165229760,0.002,2053.1,2052.4,0.59935484]
[1772165229971,0.002,2053.1,2052.5,0.6481673]
[1772165231551,1.549,2053.0,2052.3,0.001]
[1772165231766,2.17710571,2053.0,2052.3,0.001]
[1772165232079,0.63010571,2052.9,2052.3,0.001]
[1772165233666,0.62810571,2052.7,2052.0,0.001]
[1772165234256,1.21984879,2052.8,2052.0,0.6491673]
[1772165234463,0.002,2052.7,2052.5,0.001]
[1772165234679,0.002,2052.7,2052.0,0.6491673]
[1772165234877,0.002,2052.6,2052.3,0.001]
[1772165236081,1.548,2052.5,2052.3,0.001]
[1772165237084,0.002,2052.4,2052.0,0.6491673]
[1772165237262,0.002,2052.4,2052.0,0.001]
[1772165237954,2.76607118,2052.5,2052.0,0.6491673]
[1772165238152,2.76807118,2052.5,2052.0,0.6491673]
[1772165238388,3.39617689,2052.5,2051.8,0.001]
[1772165238556,0.62810571,2052.4,2051.8,0.001]
[1772165239079,0.002,2052.3,2051.8,0.001]
[1772165240075,0.002,2052.2,2051.8,0.001]
[1772165240268,0.002,2052.2,2051.8,0.6491673]
[1772165241865,1.21813278,2052.4,2051.8,0.6491673]
[1772165242065,0.002,2052.3,2051.9,0.6481673]
[1772165242260,1.549,2052.3,2051.9,0.6481673]
[1772165242578,1.549,2052.3,2051.8,0.001]
[1772165242579,0.002,2052.2,2051.8,0.001]
[1772165242977,1.549,2052.3,2051.3,0.6481673]
[1772165242978,0.002,2052.1,2051.3,0.6481673]
[1772165244568,0.002,2052.1,2051.5,0.6481673]
[1772165246872,0.002,2052.1,2051.5,1.86775892]
[1772165247190,0.004,2052.1,2051.5,1.86775892]
[1772165248489,0.004,2052.1,2051.5,0.6491673]
[1772165248988,0.63010571,2052.1,2051.3,0.001]
[1772165249177,0.002,2052.0,2051.1,0.6481673]
[1772165250886,0.002,2052.0,2051.3,0.6481673]
[1772165254095,0.002,2052.0,2051.5,0.6481673]
[1772165256404,0.002,2052.0,2051.2,1.86693003]
[1772165256605,0.002,2052.0,2051.2,1.86695594]
[1772165257106,0.002,2052.0,2051.3,0.6481673]
[1772165258199,0.002,2052.0,2051.5,0.6481673]
[1772165258706,0.002,2052.0,2051.6,1.21856112]
[1772165258907,0.002,2052.0,2051.7,0.6481673]
[1772165259289,0.6497082,2051.9,2050.7,0.001]
[1772165259488,0.6497082,2051.4,2050.7,0.001]
[1772165259789,1.4397082,2051.3,2050.3,1.84924261]
[1772165259997,0.792,2051.3,2050.4,0.62993972]
[1772165260305,0.59229559,2051.2,2050.2,0.001]
[1772165260509,0.59229559,2051.2,2050.2,1.22035674]
[1772165260705,1.80915376,2051.1,2050.2,1.22035674]
[1772165260904,0.59029559,2051.0,2050.2,0.001]
[1772165261118,1.22085817,2051.1,2050.3,0.62993972]
[1772165261280,0.59029559,2051.0,2050.2,0.001]
[1772165261487,0.59229559,2050.9,2050.2,0.001]
[1772165262993,0.002,2050.9,2050.2,0.63093972]
[1772165263192,1.54,2051.1,2050.5,0.62993972]
[1772165263615,0.59229559,2051.8,2050.5,0.62993972]
[1772165263913,1.220451,2051.8,2050.8,0.62993972]
[1772165264816,0.002,2051.8,2050.8,0.62993972]
[1772165264988,0.002,2051.8,2051.2,1.84873847]
[1772165265186,0.002,2051.8,2051.1,1.21881487]
[1772165268027,0.59029559,2051.6,2050.7,1.21909591]
[1772165268241,1.537,2051.7,2050.8,0.62993972]
[1772165268993,2.12729559,2051.7,2050.8,0.62993972]
[1772165269390,0.59029559,2051.6,2050.8,0.62993972]
[1772165269693,0.59029559,2051.6,2050.2,0.001]
[1772165269694,0.59029559,2051.3,2050.2,0.001]
[1772165269919,0.59029559,2051.3,2050.2,1.22039293]
[1772165270999,0.59029559,2051.3,2050.3,0.62993972]
[1772165271319,1.536,2051.2,2050.3,0.62993972]
[1772165271814,1.536,2051.1,2050.4,1.21927428]
[1772165272016,1.21879875,2051.2,2050.4,1.21927428]
[1772165272216,1.535,2051.1,2050.4,1.21927428]
[1772165272943,1.535,2051.0,2050.4,1.21927428]
[1772165273110,1.535,2051.5,2050.5,0.62993972]
[1772165273297,1.535,2051.5,2051.0,0.001]
[1772165273705,1.537,2051.5,2051.0,0.001]
[1772165273915,1.21867992,2051.4,2051.0,0.001]
[1772165274629,0.002,2051.5,2051.0,0.63093972]
[1772165274922,1.22062211,2051.5,2051.0,0.63093972]
[1772165275086,0.002,2051.5,2051.0,0.63093972]
[1772165276089,1.220624,2051.5,2051.0,0.63093972]
[1772165276600,1.220624,2051.5,2051.0,0.001]
[1772165277422,1.536,2051.4,2051.0,0.001]
[1772165277802,1.220624,2051.5,2051.0,0.001]
[1772165278296,1.21871114,2051.4,2051.0,0.001]
[1772165278892,2.75471114,2051.4,2051.0,0.001]
[1772165279096,1.80900673,2051.4,2051.0,0.001]
[1772165279296,1.536,2051.3,2051.0,0.001]
[1772165280041,0.002,2051.7,2051.2,0.62993972]
[1772165280493,0.002,2051.7,2051.3,1.21873933]
[1772165280893,0.002,2051.7,2051.2,0.62993972]
[1772165281092,0.002,2051.7,2051.1,1.21885817]
[1772165282096,0.59229559,2051.7,2051.0,1.21987472]
[1772165282497,1.21856112,2051.6,2051.0,0.001]
[1772165283133,2.12629559,2051.5,2051.0,0.001]
[1772165283634,0.59029559,2051.4,2051.0,0.001]
[1772165284136,1.21856112,2051.6,2051.0,0.001]
[1772165284328,4.87624449,2051.7,2051.0,0.63093972]
[1772165284329,0.002,2051.7,2051.0,0.63093972]
[1772165284554,0.002,2051.7,2051.2,0.62993972]
[1772165286430,0.002,2051.7,2051.3,2.37881173]
[1772165286924,0.002,2051.7,2051.4,1.21867992]
[1772165287108,0.002,2051.8,2051.4,1.21867992]
[1772165287309,0.002,2051.8,2051.4,1.21967992]
[1772165287507,0.002,2051.5,2051.4,1.21967992]
[1772165287741,0.002,2051.8,2051.4,1.21967992]
[1772165288112,0.002,2051.8,2051.4,1.84961964]
[1772165289429,0.002,2051.8,2051.4,0.001]
[1772165289632,0.002,2051.8,2051.4,1.2196724]
[1772165290508,0.002,2051.8,2051.5,2.37881173]
[1772165291317,0.002,2052.1,2051.7,0.62416307]
[1772165291517,0.002,2052.3,2052.1,2.37881173]
[1772165291750,0.002,2052.3,2051.7,0.62416307]
[1772165291751,1.22015137,2052.3,2051.7,1.418]
[1772165292263,0.002,2052.3,2051.7,1.418]
[1772165292642,1.2201536,2052.3,2051.7,1.418]
[1772165293251,0.002,2052.6,2052.1,2.37881173]
[1772165293443,0.002,2052.6,2052.2,1.21820485]
[1772165297094,0.002,2052.6,2052.1,2.63622405]
[1772165297254,0.63249615,2052.6,2051.8,1.423]
[1772165298844,1.21802679,2052.5,2051.9,1.21838296]
[1772165299064,1.84852294,2052.5,2051.8,2.64143669]
[1772165299564,1.84852294,2052.5,2051.8,1.423]
[1772165300074,0.63249615,2052.4,2051.6,1.21852757]
[1772165301777,1.21814549,2052.3,2051.6,1.21852757]
[1772165302442,1.21814549,2052.3,2051.4,1.21965821]
[1772165302443,0.63049615,2052.2,2051.4,1.21965821]
[1772165303872,0.63049615,2052.0,2051.4,0.001]
[1772165305375,0.63049615,2052.0,2051.1,0.001]
[1772165305749,0.63049615,2052.0,2051.1,1.2198553]
[1772165305952,0.63049615,2051.8,2051.1,0.001]
[1772165306672,1.13089159,2051.9,2051.1,0.001]
[1772165306883,1.21816955,2052.3,2051.6,3.0029748]
[1772165307383,1.22011285,2052.4,2051.6,3.0029748]
[1772165307544,1.22009274,2052.4,2051.6,3.0029748]
[1772165307985,1.22009274,2052.4,2051.7,1.21850173]
[1772165308584,1.22009274,2052.4,2051.6,7.87698771]
[1772165308585,0.63049615,2052.3,2051.4,6.29465509]
[1772165308951,0.63049615,2052.3,2051.4,6.91881816]
[1772165310210,1.84866722,2052.3,2051.4,6.91881816]
[1772165310369,0.63049615,2052.2,2051.4,1.21867992]
[1772165310549,0.63049615,2052.2,2051.3,3.59750648]
[1772165311550,0.63049615,2052.2,2051.3,4.22166955]
[1772165311751,0.63049615,2052.2,2051.5,0.001]
[1772165312150,1.21826421,2052.1,2051.5,0.001]
[1772165314574,1.84874869,2052.2,2051.5,0.001]
[1772165315575,0.63049615,2052.1,2051.5,0.001]
[1772165317193,1.84881973,2052.0,2051.5,0.001]
[1772165317803,0.63049615,2052.0,2051.5,0.001]
[1772165318022,1.21831111,2052.1,2051.5,0.001]
[1772165319262,5.52150116,2052.2,2051.5,0.001]
[1772165323600,0.61708883,2052.1,2051.5,0.001]
[1772165324724,0.61708883,2052.1,2051.7,0.001]
[1772165325021,0.002,2052.0,2051.7,0.001]
[1772165325219,1.22032358,2052.0,2051.7,0.001]
[1772165326197,0.61708883,2051.8,2051.1,0.001]
[1772165326528,0.61708883,2051.8,2051.1,1.21984539]
[1772165327385,1.21850173,2051.7,2051.1,0.001]
[1772165328326,1.21850173,2051.7,2051.1,1.21985238]
[1772165328484,1.83559056,2051.7,2051.1,1.21985238]
[1772165329340,1.83559056,2051.7,2051.1,0.001]
[1772165329928,0.002,2052.0,2051.2,0.6391978]
[1772165330131,1.22032427,2052.0,2051.2,0.6391978]
[1772165331619,0.002,2052.0,2051.4,0.6391978]
[1772165331948,0.002,2052.2,2051.7,0.6391978]
[1772165332255,0.002,2052.2,2051.7,0.4976149]
[1772165332734,0.002,2052.3,2051.8,0.54661308]
[1772165333915,0.002,2052.3,2051.9,1.21838296]
[1772165334324,0.002,2052.3,2051.8,1.76500889]
[1772165334530,0.002,2052.3,2051.8,3.17800889]
[1772165335905,0.002,2052.3,2051.9,0.54851801]
[1772165336101,0.002,2052.3,2052.0,1.21832358]
[1772165336326,0.002,2052.3,2051.9,1.76686524]
[1772165336705,0.002,2052.3,2051.8,2.63139528]
[1772165337331,0.002,2052.3,2051.8,1.414]
[1772165337829,0.61908883,2052.3,2051.8,1.414]
[1772165338739,0.61908883,2052.3,2051.4,5.09825752]
[1772165338740,0.61708883,2052.2,2051.4,5.09825752]
[1772165338914,1.22015261,2052.3,2051.4,1.2186798]
[1772165338915,0.61908883,2052.1,2051.4,1.2186798]
[1772165339837,0.61908883,2052.1,2051.3,1.21969477]
[1772165340331,0.61908883,2052.1,2051.3,1.77124671]
[1772165340904,1.83740925,2052.1,2051.3,1.77124671]
[1772165341736,1.83740925,2052.1,2051.4,0.55213847]
[1772165342212,1.83740925,2052.1,2051.4,3.8813984]
[1772165343321,1.83740925,2052.1,2051.4,5.10003774]
[1772165343843,0.61708883,2052.0,2051.4,4.74425993]
[1772165344133,0.61708883,2052.0,2051.4,1.415]
[1772165344441,0.61708883,2052.0,2051.4,2.63367787]
[1772165345222,0.61708883,2051.8,2051.1,0.001]
[1772165345441,0.61708883,2051.8,2051.2,1.415]
[1772165346135,1.21838296,2051.9,2051.2,1.96945682]
[1772165346519,1.83543961,2052.0,2051.3,0.55500892]
[1772165346723,0.61708883,2052.0,2051.3,0.55500892]
[1772165346924,1.83541289,2052.0,2051.4,1.414]
[1772165347132,0.61708883,2051.9,2051.1,0.001]
[1772165347335,0.61708883,2051.9,2050.9,0.001]
[1772165347535,0.61708883,2051.9,2050.9,2.00996561]
[1772165347743,0.61708883,2051.9,2051.0,0.55555493]
[1772165348079,0.61708883,2051.9,2051.1,0.55555493]
[1772165348822,0.61708883,2051.9,2051.2,1.414]
[1772165349241,0.61708883,2051.7,2051.2,1.414]
[1772165349941,0.61708883,2051.7,2050.9,1.21994745]
[1772165350148,0.61708883,2051.7,2051.1,1.413]
[1772165350347,4.8737318,2052.0,2051.3,0.55867852]
[1772165350348,0.63199879,2052.0,2051.3,0.55867852]
[1772165350655,0.002,2052.3,2051.8,3.88693845]
[1772165350822,0.002,2052.4,2051.9,1.97067852]
[1772165351017,0.002,2052.5,2052.1,3.32925993]
[1772165351255,0.002,2052.5,2052.1,4.54747819]
[1772165351454,0.002,2052.6,2052.1,5.1056665]
[1772165351637,0.002,2052.6,2052.2,1.413]
[1772165351953,0.002,2052.8,2052.3,0.55818831]
[1772165352253,0.002,2053.3,2052.6,0.55868829]
[1772165352546,0.002,2053.3,2052.7,1.414]
[1772165353325,0.002,2053.3,2052.8,1.21784879]
[1772165353534,0.002,2053.3,2052.6,0.55868829]
[1772165354146,0.002,2053.3,2052.5,4.54724783]
[1772165354348,0.002,2053.3,2052.6,1.413]
[1772165354523,0.002,2053.3,2052.5,4.54724783]
[1772165354726,0.002,2053.3,2052.6,1.413]
[1772165355254,0.002,2053.3,2052.7,1.413]
[1772165355475,0.002,2053.3,2052.8,4.74225993]
[1772165356849,4.87151402,2053.6,2053.2,3.32925993]
[1772165356850,0.002,2053.6,2053.2,3.32925993]
[1772165357049,0.63199879,2054.0,2053.5,3.32925993]
[1772165357250,1.21711739,2054.1,2053.6,1.413]
[1772165357559,1.84896283,2054.3,2053.6,2.63036966]
[1772165357863,1.21694509,2054.4,2053.6,2.63036966]
[1772165358361,1.21694509,2054.4,2053.8,3.32925993]
[1772165359466,4.86746264,2054.5,2053.8,4.54649124]
[1772165359660,1.21684108,2054.5,2053.8,4.54649124]
[1772165359967,1.21684108,2054.5,2053.9,1.413]
[1772165360650,1.21684108,2054.5,2053.2,3.32925993]
[1772165360651,0.63199879,2054.4,2053.2,3.32925993]
[1772165360847,0.63199879,2054.4,2053.3,1.413]
[1772165361052,0.63199879,2054.4,2053.2,3.32925993]
[1772165361249,0.63199879,2054.4,2053.3,1.413]
[1772165361656,0.63199879,2054.2,2053.3,1.413]
[1772165361860,0.63199879,2054.2,2053.2,3.32925993]
[1772165362059,0.63199879,2054.2,2053.2,4.54687126]
[1772165362261,1.21695954,2054.3,2053.3,1.97439182]
[1772165362566,0.002,2054.2,2053.8,0.001]
[1772165364759,0.002,2054.4,2053.9,3.32925993]
[1772165364957,1.21891097,2054.4,2053.9,3.32925993]
[1772165365163,1.21891097,2054.4,2054.0,1.412]
[1772165365876,0.002,2054.7,2054.0,1.412]
[1772165366172,1.21876634,2054.7,2054.2,3.32925993]
[1772165366560,1.21873856,2054.7,2054.2,3.32925993]
[1772165367282,0.002,2054.7,2054.2,3.32925993]
[1772165367596,1.21872942,2054.7,2054.2,3.32925993]
[1772165367750,0.002,2054.7,2054.2,3.32925993]
[1772165368157,0.63199879,2055.2,2054.5,3.32925993]
[1772165368462,0.63199879,2055.2,2054.5,4.74125993]
[1772165368653,4.865361,2055.4,2054.5,5.30518553]
[1772165369152,1.21630826,2055.4,2054.8,3.32925993]
[1772165369405,1.21627967,2055.5,2054.8,3.32925993]
[1772165369679,1.21627967,2055.5,2054.9,1.412]
[1772165369882,0.003,2056.0,2055.1,3.32925993]
[1772165370049,1.84771557,2056.4,2055.4,3.32925993]
[1772165370251,1.84771557,2056.4,2055.5,1.412]
[1772165370476,5.49432132,2056.7,2055.7,3.32925993]
[1772165370683,1.8475801,2056.7,2056.0,3.32925993]
[1772165370896,1.21545734,2056.9,2056.3,3.32925993]
[1772165371055,1.84738352,2057.0,2056.3,3.32925993]
[1772165371256,1.21538473,2057.0,2056.3,3.32925993]
[1772165371454,0.63199879,2056.9,2055.5,1.411]
[1772165371690,0.63199879,2056.9,2055.8,3.32925993]
[1772165372168,0.63199879,2056.7,2055.6,1.78024949]
[1772165372376,0.63199879,2056.7,2055.7,1.411]
[1772165372563,0.63199879,2056.7,2055.5,8.19410264]
[1772165372564,0.63199879,2056.7,2055.5,3.32925993]
[1772165372753,0.63199879,2056.5,2055.0,4.43225993]
[1772165372960,0.63199879,2056.3,2055.0,5.6488]
[1772165373160,0.63199879,2056.3,2055.0,3.32925993]
[1772165373465,0.63199879,2056.3,2055.1,1.246]
[1772165373667,0.63199879,2056.2,2055.0,1.41]
[1772165374059,0.63199879,2056.0,2055.0,1.41]
[1772165374691,2.64319001,2055.9,2054.7,1.409]
[1772165374898,0.63199879,2055.8,2054.6,1.358]
[1772165375680,0.63399879,2055.8,2054.6,1.358]
[1772165375882,0.63399879,2055.8,2054.4,4.54611694]
[1772165376194,1.21613075,2055.7,2054.7,1.77761994]
[1772165376788,1.21613075,2055.7,2054.8,3.32925993]
[1772165377169,0.63199879,2055.6,2054.6,1.409]
[1772165377368,0.63199879,2055.6,2054.6,2.62577895]
[1772165378674,0.63199879,2055.6,2054.6,1.409]
[1772165378883,1.84824787,2055.5,2054.6,1.409]
[1772165379076,1.84824787,2055.5,2054.6,2.62577812]
[1772165379406,1.84824787,2055.5,2054.8,2.36981076]
[1772165379991,0.64986041,2055.4,2054.6,3.77681076]
[1772165380984,1.21636744,2055.3,2054.6,3.77681076]
[1772165381192,1.21636744,2055.3,2054.6,2.36981076]
[1772165381475,1.21636744,2055.3,2054.2,7.50803795]
[1772165381476,0.64986041,2055.2,2054.2,2.63998883]
[1772165381971,0.64986041,2055.2,2054.4,2.36981076]
[1772165382370,1.21636744,2055.3,2054.7,2.36981076]
[1772165382880,0.64986041,2055.3,2054.4,2.9260306]
[1772165383078,0.64986041,2055.3,2054.5,1.407]
[1772165385118,1.21642662,2055.2,2054.5,1.407]
[1772165385779,0.64986041,2055.6,2054.9,2.36981076]
[1772165385986,1.86605733,2055.6,2054.9,3.77581076]
[1772165386190,1.21616169,2055.7,2054.9,4.32985965]
[1772165386400,1.8660221,2055.7,2054.9,2.36981076]
[1772165386600,0.64986041,2055.6,2055.0,1.406]
[1772165386901,0.64986041,2055.5,2054.5,1.405]
[1772165387102,0.64986041,2055.3,2054.5,2.62182436]
[1772165387686,0.64986041,2055.3,2054.7,0.001]
[1772165389308,0.64986041,2055.1,2054.5,0.001]
[1772165389793,0.64986041,2055.1,2054.2,0.001]
[1772165390114,0.64986041,2054.9,2054.2,0.001]
[1772165390311,0.64986041,2054.9,2054.2,1.21801343]
[1772165390615,0.64986041,2054.9,2054.2,0.001]
[1772165391110,0.64986041,2054.9,2054.2,1.2180121]
[1772165391318,1.21666342,2054.8,2054.2,0.001]
[1772165391815,1.86652383,2054.8,2054.2,0.001]
[1772165394317,0.64986041,2054.6,2054.2,0.001]
[1772165394687,0.64986041,2054.6,2053.8,2.37081076]
[1772165394888,0.64986041,2054.4,2053.8,0.001]
[1772165396011,1.86681995,2054.3,2053.8,0.001]
[1772165396200,1.21695954,2054.3,2053.8,0.001]
[1772165398988,4.86764386,2054.5,2053.8,0.001]
[1772165399599,5.51750427,2054.5,2053.8,0.001]
[1772165400014,4.86764386,2054.5,2053.8,0.001]
[1772165400220,5.51750427,2054.5,2053.8,0.001]
[1772165400823,5.51750427,2054.5,2054.0,0.001]
[1772165401325,5.51750427,2054.5,2053.8,0.001]
[1772165401326,0.64986041,2054.3,2053.8,0.001]
[1772165401527,4.86764386,2054.5,2053.8,0.001]
[1772165401695,0.45331282,2054.4,2053.8,0.001]
[1772165402019,0.64986041,2054.4,2053.8,0.001]